fUST/lending_fUST_20250805
["ID","MTS","AMOUNT","RATE_DAILY","PERIOD"]
[377335939,1754355049089,-151.0,0.00027464,2]
[377335940,1754355049099,-151.0,0.00027464,2]
[377335941,1754355049108,-151.0,0.00027464,2]
[377335942,1754355049117,-151.0,0.00027464,2]
[377335943,1754355049127,-151.0,0.00027464,2]
[377335944,1754355049136,-151.0,0.00027464,2]
[377335945,1754355049146,-151.0,0.00027464,2]
[377335946,1754355049155,-163.3321412,0.00027514,15]
[377335947,1754355049165,-10748.3338759,0.00027661,2]
[377335948,1754355049174,-1013.44944115,0.00027661,2]
[377335949,1754355049184,-500.0,0.0002767,2]
[377335950,1754355049194,-500.0,0.0002767,2]
[377335951,1754355049203,-460.0,0.00027671,2]
[377335952,1754355049213,-460.0,0.00027671,2]
[377335953,1754355049222,-460.0,0.00027671,2]
[377335954,1754355049232,-460.0,0.00027671,2]
[377335955,1754355049241,-460.0,0.00027671,2]
[377335956,1754355049251,-460.0,0.00027671,2]
[377335957,1754355049260,-475.43,0.00027671,2]
[377335958,1754355049270,-460.0,0.00027671,2]
[377335959,1754355049280,-460.0,0.00027671,2]
[377335960,1754355049289,-460.0,0.00027671,2]
[377335961,1754355049298,-460.0,0.00027671,2]
[377335962,1754355049307,-460.0,0.00027671,2]
[377335963,1754355049316,-460.0,0.00027671,2]
[377335964,1754355049327,-460.0,0.00027671,2]
[377335965,1754355049337,-460.0,0.00027671,2]
[377335966,1754355049346,-460.0,0.00027671,2]
[377335967,1754355049356,-462.405396,0.00027671,2]
[377335968,1754355049366,-460.0,0.00027671,2]
[377335969,1754355049375,-460.0,0.00027671,2]
[377335970,1754355049384,-460.0,0.00027671,2]
[377335971,1754355049394,-460.0,0.00027671,2]
[377335972,1754355049403,-264.75,0.00027671,2]
[377335973,1754355049413,-461.82841496,0.00027671,2]
[377335974,1754355049422,-460.0,0.00027671,2]
[377335975,1754355049431,-460.0,0.00027671,2]
[377335976,1754355049441,-460.0,0.00027671,2]
[377335977,1754355049450,-460.0,0.00027671,2]
[377335978,1754355049460,-460.0,0.00027671,2]
[377335979,1754355049469,-460.0,0.00027671,2]
[377335980,1754355049479,-460.0,0.00027671,2]
[377335981,1754355049489,-460.0,0.00027671,2]
[377335982,1754355049499,-460.0,0.00027671,2]
[377335983,1754355049508,-460.0,0.00027671,2]
[377335984,1754355049518,-462.52544459,0.00027671,2]
[377335985,1754355049531,-460.0,0.00027671,2]
[377335986,1754355049541,-460.0,0.00027671,2]
[377335987,1754355049550,-460.0,0.00027671,2]
[377335988,1754355049560,-544.67,0.00027671,2]
[377335989,1754355049570,-460.0,0.00027671,2]
[377335990,1754355049580,-460.0,0.00027671,2]
[377335991,1754355049589,-460.0,0.00027671,2]
[377335992,1754355049599,-500.0,0.00027944,2]
[377335993,1754355049608,-460.0,0.00027945,2]
[377335994,1754355049617,-460.0,0.00027945,2]
[377335995,1754355049627,-460.0,0.00027945,2]
[377335996,1754355049636,-189.41856142,0.00027945,2]
[377335997,1754355049646,-155.23,0.00027945,2]
[377335998,1754355049655,-460.0,0.00027945,2]
[377335999,1754355049665,-460.0,0.00027945,2]
[377336000,1754355049674,-460.0,0.00027945,2]
[377336001,1754355049684,-1500.0,0.00027968,5]
[377336002,1754355049694,-1500.0,0.00027968,5]
[377336003,1754355049703,-409.14410612,0.00027968,5]
[377336004,1754355049713,-150.0,0.00028161,2]
[377336005,1754355049723,-302.92,0.00028219,2]
[377336006,1754355049732,-367.17,0.00028219,2]
[377336007,1754355049742,-460.0,0.00028219,2]
[377336008,1754355049751,-460.0,0.00028219,2]
[377336009,1754355049761,-460.0,0.00028219,2]
[377336010,1754355049771,-312.0,0.00028401,2]
[377336011,1754355049782,-500.0,0.00028492,2]
[377336012,1754355049792,-460.0,0.00028493,2]
[377336013,1754355049801,-460.0,0.00028493,2]
[377336014,1754355049811,-1028.46855899,0.00028516,5]
[377336015,1754355049822,-330.25067801,0.00028516,5]
[377336016,1754355049831,-460.0,0.00028767,2]
[377336017,1754355049841,-460.0,0.00028767,2]
[377336018,1754355049850,-1000.0,0.00029,4]
[377336019,1754355049860,-460.0,0.00029041,2]
[377336020,1754355049870,-460.0,0.00029041,2]
[377336021,1754355049879,-372.0,0.0002907,2]
[377336022,1754355049888,-420.0,0.0002907,2]
[377336023,1754355049898,-758.0,0.00029183,2]
[377336024,1754355049908,-180.31173482,0.00029193,2]
[377336025,1754355049917,-500.0,0.00029314,2]
[377336026,1754355049926,-460.0,0.00029315,2]
[377336027,1754355049936,-460.0,0.00029315,2]
[377336028,1754355049945,-200.0,0.00029575,15]
[377336029,1754355049955,-300.0,0.00029575,15]
[377336030,1754355049964,-521.10029274,0.00029589,2]
[377336031,1754355049973,-460.0,0.00029589,2]
[377336032,1754355049983,-460.0,0.00029863,2]
[377336033,1754355049992,-1000.0,0.0003,4]
[377336034,1754355050001,-460.0,0.00030136,2]
[377336035,1754355050011,-500.0,0.00030214,2]
[377336036,1754355050020,-500.0,0.00030215,2]
[377336037,1754355050030,-500.0,0.00030215,2]
[377336038,1754355050039,-231.67098287,0.00030353,2]
[377336039,1754355050048,-461.05335821,0.00030359,2]
[377336040,1754355050058,-160.0,0.00030359,2]
[377336041,1754355050067,-842.05743881,0.00030359,2]
[377336042,1754355050077,-160.0,0.00030359,2]
[377336043,1754355050086,-160.0,0.00030359,2]
[377336044,1754355050096,-216.36857094,0.00030368,2]
[377336045,1754355050105,-495.18,0.000304,2]
[377336046,1754355050114,-1758.19093031,0.0003041,2]
[377336047,1754355050123,-200.73546156,0.0003041,2]
[377336048,1754355050133,-460.0,0.0003041,2]
[377336049,1754355050142,-200.0,0.00030417,120]
[377336050,1754355050152,-287.73617717,0.00030445,2]
[377336051,1754355050161,-200.0,0.00030479,120]
[377336052,1754355050170,-460.0,0.00030684,2]
[377336053,1754355050181,-10748.3338759,0.00030849,2]
[377336054,1754355050191,-1013.44944115,0.00030849,2]
[377336055,1754355050200,-247.62215551,0.00030876,2]
[377336056,1754355050210,-1401.8246954,0.00030916,2]
[377336057,1754355050220,-500.0,0.00030957,2]
[377336058,1754355050230,-460.0,0.00030958,2]
[377336059,1754355050238,-460.0,0.00031232,2]
[377336060,1754355050247,-587.0,0.00031432,2]
[377336061,1754355050256,-200.0,0.00031452,120]
[377336062,1754355050266,-460.0,0.00031506,2]
[377336063,1754355050275,-200.0,0.00031718,120]
[377336064,1754355050285,-460.0,0.0003178,2]
[377336065,1754355050294,-460.0,0.00032054,2]
[377336066,1754355050304,-460.0,0.00032328,2]
[377336067,1754355050313,-200.0,0.00032414,15]
[377336068,1754355050323,-200.0,0.00032414,15]
[377336069,1754355050333,-300.0,0.00032414,15]
[377336070,1754355050342,-555.14,0.00032602,2]
[377336071,1754355050351,-635.0,0.00032618,2]
[377336072,1754355050361,-2148.0,0.00032618,2]
[377336073,1754355050370,-970.0,0.00032618,2]
[377336074,1754355050379,-644.0,0.000327,2]
[377336075,1754355050388,-150.0,0.00032873,3]
[377336076,1754355050397,-500.0,0.00032875,2]
[377336077,1754355050407,-500.0,0.00032876,120]
[377336078,1754355050417,-13329.21,0.00032876,120]
[377336079,1754355050426,-500.0,0.00032877,5]
[377336080,1754355050437,-10748.3338759,0.0003288,2]
[377336081,1754355050447,-1013.44944115,0.0003288,2]
[377336082,1754355050457,-1010.74,0.000329,7]
[377336083,1754355050466,-2568.42,0.000329,7]
[377336084,1754355050476,-7226.33,0.000329,14]
[377336085,1754355050485,-200.0,0.0003292,120]
[377336086,1754355050495,-629.23746848,0.00032999,2]
[377336087,1754355050505,-5001.80548604,0.00033,30]
[377336088,1754355050515,-175.946432,0.00033165,2]
[377336089,1754355050526,-287.73617717,0.00033594,2]
[377336090,1754355050536,-13329.21,0.00033698,120]
[377336091,1754355050546,-823.0,0.00033985,2]
[377336092,1754355050555,-200.0,0.00034295,120]
[377336093,1754355050564,-10748.3338759,0.0003439,2]
[377336094,1754355050661,-1013.44944115,0.0003439,2]
[377336095,1754355050681,-12710.2043249,0.0003441,2]
[377336096,1754355050691,-283.29938604,0.000345,2]
[377336097,1754355050700,-23733.3,0.000345,14]
[377336098,1754355050710,-10748.3338759,0.0003451,2]
[377336099,1754355050721,-1013.44944115,0.0003451,2]
[377336100,1754355050731,-13329.21,0.0003452,120]
[377336101,1754355050740,-1401.8246954,0.00034635,2]
[377336102,1754355050750,-200.0,0.00034738,120]
[377336103,1754355050759,-200.0,0.00034973,120]
[377336104,1754355050769,-150.0,0.0003505,5]
[377336105,1754355050779,-13329.21,0.00035342,120]
[377336106,1754355050789,-200.0,0.00035361,120]
[377336107,1754355050799,-2200.0,0.00035516,7]
[377336108,1754355050808,-200.0,0.00035526,15]
[377336109,1754355050821,-200.0,0.00035526,15]
[377336110,1754355050831,-200.0,0.00035526,15]
[377336111,1754355050840,-379.0,0.00035526,15]
[377336112,1754355050850,-10748.3338759,0.0003559,3]
[377336113,1754355050860,-1013.44944115,0.0003559,3]
[377336114,1754355050869,-160.0,0.0003559,3]
[377336115,1754355050880,-431.21476177,0.0003559,3]
[377336116,1754355050890,-450.0,0.00035598,5]
[377336117,1754355050899,-160.0,0.000356,3]
[377336118,1754355050909,-216.36857094,0.000356,3]
[377336119,1754355050919,-635.0,0.00035618,2]
[377336120,1754355050928,-2148.0,0.00035618,2]
[377336121,1754355050938,-970.0,0.00035618,2]
[377336122,1754355050947,-224.74,0.0003586,30]
[377336123,1754355050956,-200.0,0.00035877,120]
[377336124,1754355050965,-200.0,0.0003593,120]
[377336125,1754355050975,-13329.21,0.00036164,120]
[377336126,1754355050984,-200.0,0.00036464,120]
[377336127,1754355050994,-7226.33,0.000365,14]
[377336128,1754355051006,-200.0,0.00036644,120]
[377336129,1754355051015,-10748.3338759,0.0003668,3]
[377336130,1754355051025,-1013.44944115,0.0003668,3]
[377336131,1754355051035,-2568.42,0.000367,7]
[377336132,1754355051044,-160.0,0.000367,7]
[377336133,1754355051054,-1500.0,0.00036712,7]
[377336134,1754355051065,-287.73617717,0.00036742,2]
[377336135,1754355051075,-609.0,0.00036746,2]
[377336136,1754355051085,-200.0,0.00036757,120]
[377336137,1754355051094,-1010.74,0.000368,7]
[377336138,1754355051105,-216.36857094,0.000368,7]
[377336139,1754355051115,-10748.3338759,0.0003688,3]
[377336140,1754355051125,-1013.44944115,0.0003688,3]
[377336141,1754355051135,-4784.42382941,0.0003689,3]
[377336142,1754355051154,-619.99152765,0.0003689,3]
[377336143,1754355051173,-460.0,0.00027397,2]
[377336144,1754355051183,-2464.71591584,0.0003689,3]
[377336146,1754355163028,2000.0,0.00030253,30]
[377336148,1754355406097,175.70785962,0.00030258,120]
[377336150,1754355850392,166.040931,0.00013699,2]
[377336151,1754355850791,166.040931,0.00020951,2]
[377336152,1754355911075,159.001437,0.00026235,2]
[377336154,1754355968968,5000.0,0.000265,2]
[377336163,1754356208506,24900.0,0.00026235,2]
[377336186,1754356232686,-162.0277016,0.00026815,2]
[377336187,1754356232697,-887.8175355,0.00027297,2]
[377336188,1754356232708,-641.18150074,0.00027396,2]
[377336189,1754356232718,-500.0,0.00027396,2]
[377336190,1754356232729,-300.0,0.00027396,2]
[377336191,1754356232739,-460.0,0.00027397,2]
[377336192,1754356232750,-460.0,0.00027397,2]
[377336193,1754356232762,-460.0,0.00027397,2]
[377336194,1754356232774,-465.28245797,0.00027397,2]
[377336195,1754356232785,-460.0,0.00027397,2]
[377336196,1754356232795,-204.89167039,0.00027397,2]
[377336197,1754356232808,-255.10832961,0.00027397,2]
[377336198,1754356232817,-291.39729852,0.00027397,2]
[377336199,1754356232828,-168.60270148,0.00027397,2]
[377336200,1754356232839,-460.0,0.00027397,2]
[377336201,1754356232848,-460.0,0.00027397,2]
[377336202,1754356232858,-461.45571109,0.00027397,2]
[377336204,1754356232868,-460.0,0.00027397,2]
[377336205,1754356232877,-460.0,0.00027397,2]
[377336206,1754356232886,-460.0,0.00027397,2]
[377336207,1754356232895,-460.0,0.00027397,2]
[377336208,1754356232904,-460.0,0.00027397,2]
[377336209,1754356232913,-461.44965628,0.00027397,2]
[377336210,1754356232922,-383.92883264,0.00027397,2]
[377336219,1754356238471,-76.07116736,0.00027397,2]
[377336220,1754356238481,-466.42833306,0.00027397,2]
[377336222,1754356238491,-460.0,0.00027397,2]
[377336223,1754356238501,-460.0,0.00027397,2]
[377336225,1754356238510,-466.03409821,0.00027397,2]
[377336227,1754356238519,-460.0,0.00027397,2]
[377336229,1754356238528,-460.0,0.00027397,2]
[377336230,1754356238538,-460.0,0.00027397,2]
[377336231,1754356238547,-460.0,0.00027397,2]
[377336233,1754356238556,-500.0,0.00027397,2]
[377336234,1754356238566,-500.0,0.00027397,2]
[377336235,1754356238575,-500.0,0.00027397,2]
[377336236,1754356238583,-500.0,0.00027397,2]
[377336237,1754356238594,-500.0,0.00027397,2]
[377336238,1754356238604,-499.08,0.00027397,2]
[377336239,1754356238613,-460.0,0.00027397,2]
[377336240,1754356238622,-460.0,0.00027397,2]
[377336241,1754356238632,-460.0,0.00027397,2]
[377336242,1754356238643,-460.0,0.00027397,2]
[377336243,1754356238653,-460.0,0.00027397,2]
[377336244,1754356238662,-460.0,0.00027397,2]
[377336245,1754356238671,-460.0,0.00027397,2]
[377336246,1754356238681,-460.0,0.00027397,2]
[377336247,1754356238691,-460.0,0.00027397,2]
[377336248,1754356238701,-460.0,0.00027397,2]
[377336249,1754356238710,-460.0,0.00027397,2]
[377336250,1754356238720,-460.0,0.00027397,2]
[377336251,1754356238729,-516.98428892,0.00027397,2]
[377336252,1754356238739,-460.0,0.00027397,2]
[377336253,1754356238749,-460.0,0.00027397,2]
[377336254,1754356238760,-460.0,0.00027397,2]
[377336255,1754356238775,-460.0,0.00027397,2]
[377336256,1754356238784,-460.0,0.00027397,2]
[377336257,1754356238794,-460.0,0.00027397,2]
[377336258,1754356238803,-460.0,0.00027397,2]
[377336259,1754356238813,-460.0,0.00027397,2]
[377336260,1754356238824,-461.22766692,0.00027397,2]
[377336261,1754356238834,-460.0,0.00027397,2]
[377336262,1754356238847,-349.64422867,0.00027397,2]
[377336263,1754356238863,-355.12200982,0.00027397,2]
[377336264,1754356238873,-460.0,0.00027397,2]
[377336265,1754356238883,-460.0,0.00027397,2]
[377336266,1754356238893,-460.0,0.00027397,2]
[377336267,1754356238903,-460.0,0.00027397,2]
[377336268,1754356238913,-460.0,0.00027397,2]
[377336269,1754356238922,-460.0,0.00027397,2]
[377336270,1754356238932,-461.73331376,0.00027397,2]
[377336271,1754356238942,-460.0,0.00027397,2]
[377336272,1754356238951,-460.0,0.00027397,2]
[377336273,1754356238961,-460.0,0.00027397,2]
[377336274,1754356238971,-460.0,0.00027397,2]
[377336275,1754356238981,-460.0,0.00027397,2]
[377336276,1754356238991,-460.0,0.00027397,2]
[377336277,1754356239000,-460.0,0.00027397,2]
[377336278,1754356239010,-460.0,0.00027397,2]
[377336279,1754356239019,-461.55525894,0.00027397,2]
[377336280,1754356239029,-460.0,0.00027397,2]
[377336281,1754356239039,-460.0,0.00027397,2]
[377336282,1754356239049,-460.0,0.00027397,2]
[377336283,1754356239059,-460.0,0.00027397,2]
[377336284,1754356239069,-460.0,0.00027397,2]
[377336285,1754356239079,-500.0,0.00027397,2]
[377336286,1754356239089,-460.0,0.00027397,2]
[377336287,1754356239099,-460.0,0.00027397,2]
[377336288,1754356239113,-460.23495216,0.00027397,2]
[377336289,1754356239123,-460.0,0.00027397,2]
[377336290,1754356239133,-460.0,0.00027397,2]
[377336291,1754356239144,-460.0,0.00027397,2]
[377336292,1754356239154,-460.0,0.00027397,2]
[377336293,1754356239164,-460.0,0.00027397,2]
[377336294,1754356239174,-460.0,0.00027397,2]
[377336295,1754356239184,-460.0,0.00027397,2]
[377336296,1754356239194,-460.0,0.00027397,2]
[377336297,1754356239204,-460.0,0.00027397,2]
[377336298,1754356239215,-460.0,0.00027397,2]
[377336299,1754356239226,-460.0,0.00027397,2]
[377336300,1754356239236,-460.0,0.00027397,2]
[377336301,1754356239247,-460.0,0.00027397,2]
[377336302,1754356239409,-460.0,0.00027397,2]
[377336303,1754356239419,-460.0,0.00027397,2]
[377336304,1754356239428,-460.0,0.00027397,2]
[377336305,1754356239438,-460.0,0.00027397,2]
[377336306,1754356239448,-460.0,0.00027397,2]
[377336307,1754356239457,-460.0,0.00027397,2]
[377336308,1754356239467,-464.37675377,0.00027397,2]
[377336309,1754356239478,-460.0,0.00027397,2]
[377336310,1754356239488,-460.0,0.00027397,2]
[377336311,1754356239499,-460.0,0.00027397,2]
[377336312,1754356239508,-460.0,0.00027397,2]
[377336313,1754356239519,-460.0,0.00027671,2]
[377336314,1754356239529,-460.0,0.00027671,2]
[377336315,1754356239539,-460.0,0.00027671,2]
[377336316,1754356239548,-460.0,0.00027671,2]
[377336317,1754356239558,-460.0,0.00027671,2]
[377336318,1754356239568,-460.0,0.00027671,2]
[377336319,1754356239578,-460.0,0.00027671,2]
[377336320,1754356239587,-460.0,0.00027671,2]
[377336321,1754356239597,-460.0,0.00027671,2]
[377336322,1754356239606,-341.95,0.00027671,2]
[377336323,1754356239615,-460.0,0.00027671,2]
[377336324,1754356239626,-460.0,0.00027671,2]
[377336325,1754356239635,-460.0,0.00027945,2]
[377336326,1754356239644,-460.0,0.00027945,2]
[377336327,1754356239654,-6592.96045568,0.000281,2]
[377336328,1754356239664,-354.7073044,0.000281,2]
[377336329,1754356239673,-202.98761719,0.00028107,2]
[377336330,1754356239682,-460.0,0.00028108,2]
[377336331,1754356239692,-503.15671551,0.00028108,2]
[377336332,1754356239702,-604.63758341,0.00028108,2]
[377336333,1754356239712,-460.0,0.00028108,2]
[377336334,1754356239721,-460.0,0.00028108,2]
[377336335,1754356239730,-460.0,0.00028108,2]
[377336336,1754356239740,-478.92565392,0.00028108,2]
[377336337,1754356239749,-461.06924073,0.00028108,2]
[377336338,1754356239759,-460.0,0.00028108,2]
[377336339,1754356239769,-596.86211468,0.00028108,2]
[377336340,1754356239779,-460.0,0.00028108,2]
[377336341,1754356239789,-460.0,0.00028108,2]
[377336342,1754356239799,-460.0,0.00028108,2]
[377336343,1754356239808,-460.0,0.00028108,2]
[377336344,1754356239818,-467.15786822,0.00028108,2]
[377336345,1754356239828,-460.0,0.00028108,2]
[377336346,1754356239838,-460.0,0.00028108,2]
[377336347,1754356239847,-460.0,0.00028108,2]
[377336348,1754356239857,-460.0,0.00028108,2]
[377336349,1754356239867,-460.0,0.00028108,2]
[377336350,1754356239877,-460.0,0.00028108,2]
[377336351,1754356239887,-497.75,0.00028108,2]
[377336352,1754356239897,-500.0,0.00028108,2]
[377336353,1754356239907,-460.0,0.00028108,2]
[377336354,1754356239916,-460.0,0.00028108,2]
[377336355,1754356239926,-460.0,0.00028108,2]
[377336356,1754356239936,-460.0,0.00028108,2]
[377336357,1754356239945,-460.0,0.00028108,2]
[377336358,1754356239955,-460.0,0.00028108,2]
[377336359,1754356239964,-460.0,0.00028108,2]
[377336360,1754356239979,-460.0,0.00028108,2]
[377336361,1754356239989,-460.0,0.00028108,2]
[377336362,1754356239998,-460.0,0.00028108,2]
[377336363,1754356240007,-460.0,0.00028108,2]
[377336364,1754356240017,-460.0,0.00028108,2]
[377336365,1754356240027,-544.05,0.00028108,2]
[377336366,1754356240037,-460.0,0.00028108,2]
[377336367,1754356240047,-460.0,0.00028108,2]
[377336368,1754356240057,-460.0,0.00028108,2]
[377336369,1754356240066,-460.0,0.00028108,2]
[377336370,1754356240076,-460.0,0.00028108,2]
[377336371,1754356240085,-460.0,0.00028108,2]
[377336372,1754356240094,-460.0,0.00028108,2]
[377336373,1754356240107,-460.0,0.00028108,2]
[377336374,1754356240117,-460.0,0.00028108,2]
[377336376,1754356240127,-460.0,0.00028108,2]
[377336378,1754356240138,-460.0,0.00028108,2]
[377336379,1754356240158,-460.0,0.00028108,2]
[377336381,1754356240170,-460.0,0.00028108,2]
[377336382,1754356240180,-460.59076457,0.00028108,2]
[377336384,1754356240191,-460.0,0.00028108,2]
[377336385,1754356240201,-460.0,0.00028108,2]
[377336386,1754356240211,-470.17,0.00028108,2]
[377336387,1754356240220,-460.0,0.00028108,2]
[377336389,1754356240230,-460.0,0.00028108,2]
[377336390,1754356240240,-460.0,0.00028108,2]
[377336391,1754356240251,-502.33,0.00028108,2]
[377336392,1754356240260,-460.0,0.00028108,2]
[377336393,1754356240270,-460.0,0.00028108,2]
[377336394,1754356240279,-460.0,0.00028108,2]
[377336395,1754356240289,-460.0,0.00028108,2]
[377336396,1754356240299,-500.42979315,0.00028108,2]
[377336397,1754356240309,-460.0,0.00028108,2]
[377336398,1754356240319,-460.0,0.00028108,2]
[377336399,1754356240329,-460.0,0.00028108,2]
[377336400,1754356240339,-460.0,0.00028108,2]
[377336402,1754356240349,-460.0,0.00028108,2]
[377336403,1754356240361,-541.58563402,0.00028108,2]
[377336405,1754356240371,-460.0,0.00028108,2]
[377336406,1754356240382,-460.0,0.00028108,2]
[377336407,1754356240393,-460.0,0.00028108,2]
[377336408,1754356240403,-460.0,0.00028108,2]
[377336410,1754356240413,-460.0,0.00028108,2]
[377336412,1754356240423,-460.0,0.00028108,2]
[377336414,1754356240433,-460.0,0.00028108,2]
[377336415,1754356240443,-460.0,0.00028108,2]
[377336416,1754356240453,-460.0,0.00028108,2]
[377336417,1754356240462,-521.82,0.00028108,2]
[377336418,1754356240472,-460.0,0.00028108,2]
[377336419,1754356240481,-460.0,0.00028108,2]
[377336420,1754356240491,-460.0,0.00028108,2]
[377336421,1754356240501,-460.0,0.00028108,2]
[377336422,1754356240510,-460.0,0.00028108,2]
[377336423,1754356240519,-500.0,0.00028109,2]
[377336424,1754356240529,-166.040931,0.00028203,2]
[377336425,1754356240538,-460.0,0.00028219,2]
[377336426,1754356240547,-460.0,0.00028382,2]
[377336427,1754356240556,-460.0,0.00028382,2]
[377336428,1754356240566,-460.0,0.00028382,2]
[377336429,1754356240575,-460.0,0.00028382,2]
[377336430,1754356240584,-460.0,0.00028382,2]
[377336431,1754356240593,-460.0,0.00028382,2]
[377336432,1754356240605,-460.0,0.00028382,2]
[377336433,1754356240614,-544.05,0.00028382,2]
[377336434,1754356240623,-460.0,0.00028382,2]
[377336435,1754356240632,-460.0,0.00028382,2]
[377336436,1754356240642,-460.0,0.00028382,2]
[377336437,1754356240651,-460.0,0.00028382,2]
[377336438,1754356240660,-319.21,0.00028382,2]
[377336439,1754356240669,-460.0,0.00028382,2]
[377336440,1754356240679,-462.10607945,0.00028382,2]
[377336441,1754356240688,-249.56,0.00028382,2]
[377336442,1754356240697,-460.0,0.00028382,2]
[377336443,1754356240706,-211.16,0.00028382,2]
[377336444,1754356240716,-460.0,0.00028382,2]
[377336445,1754356240725,-460.0,0.00028382,2]
[377336446,1754356240734,-460.0,0.00028382,2]
[377336447,1754356240744,-483.5,0.00028382,2]
[377336448,1754356240754,-460.0,0.00028493,2]
[377336449,1754356240763,-460.0,0.00028656,2]
[377336450,1754356240772,-544.05,0.00028656,2]
[377336451,1754356240781,-460.0,0.00028656,2]
[377336452,1754356240790,-460.0,0.00028767,2]
[377336453,1754356240800,-2431.94397973,0.000289,20]
[377336454,1754356240809,-460.0,0.0002893,2]
[377336455,1754356240819,-544.05,0.0002893,2]
[377336456,1754356240828,-460.0,0.0002893,2]
[377336457,1754356240837,-460.0,0.00029041,2]
[377336458,1754356240846,-526.89685686,0.00029204,2]
[377336459,1754356240861,-544.05,0.00029204,2]
[377336460,1754356240874,-460.0,0.00029204,2]
[377336461,1754356240886,-460.0,0.00029315,2]
[377336462,1754356240899,-544.05,0.00029478,2]
[377336463,1754356240911,-460.0,0.00029478,2]
[377336464,1754356240923,-460.0,0.00029589,2]
[377336465,1754356240935,-544.05,0.00029752,2]
[377336466,1754356240946,-460.0,0.00029752,2]
[377336467,1754356240957,-439.46,0.00029863,2]
[377336468,1754356240967,-200.0,0.0003,2]
[377336469,1754356240977,-544.05,0.00030026,2]
[377336470,1754356240988,-460.0,0.00030026,2]
[377336471,1754356241000,-1000.0,0.000301,2]
[377336472,1754356241011,-200.0,0.00030136,15]
[377336473,1754356241021,-200.0,0.00030136,15]
[377336474,1754356241032,-200.0,0.00030136,15]
[377336475,1754356241042,-500.0,0.00030136,2]
[377336476,1754356241056,-12652.17918183,0.00030221,2]
[377336477,1754356241067,-216.36857094,0.00030221,2]
[377336478,1754356241078,-231.67098287,0.00030222,2]
[377336479,1754356241090,-160.0,0.00030222,2]
[377336480,1754356241101,-842.05743881,0.00030222,2]
[377336481,1754356241114,-1064.1,0.0003025,120]
[377336482,1754356241125,-300.71929134,0.00030253,2]
[377336483,1754356241135,-565.47,0.000303,2]
[377336484,1754356241147,-544.05,0.000303,2]
[377336485,1754356241159,-460.0,0.000303,2]
[377336486,1754356241171,-6592.96045568,0.00030332,2]
[377336487,1754356241183,-354.7073044,0.00030332,2]
[377336488,1754356241194,-500.0,0.00030352,2]
[377336489,1754356241204,-152.12,0.00030537,2]
[377336490,1754356241215,-544.05,0.00030573,2]
[377336491,1754356241226,-460.0,0.00030573,2]
[377336492,1754356241236,-544.05,0.00030847,2]
[377336493,1754356241246,-460.0,0.00030847,2]
[377336494,1754356241259,-887.81753548,0.00031002,2]
[377336495,1754356241269,-544.05,0.00031121,2]
[377336496,1754356241280,-460.0,0.00031121,2]